[Event "Kragero Resort Chess A 2019"]
[Site "Kragero"]
[Date "2019.02.22"]
[Round "5.14"]
[White "Mihajlov, Sebastian"]
[Black "Vitenberg, Noam Aviv"]
[Result "0-1"]
[ECO "D05"]
[WhiteElo "2357"]
[BlackElo "2180"]
[Annotator "NA"]
[PlyCount "102"]
[EventDate "2019.02.20"]
[EventType "swiss"]
[EventCountry "NOR"]
[SourceTitle "playchess.com"]
[Source "ChessBase"]
[SourceQuality "1"]
[TimeControl "5400+30"]

1. d4 {[%emt 0:02:34]} Nf6 {[%emt 0:00:47]} 2. Nf3 {[%emt 0:00:16]} d5 {[%emt 0:00:58]} 3. e3 {[%emt 0:01:14]} e6 {[%emt 0:00:08]} 4. Bd3 {[%emt 0:00:07]} c5 {[%emt 0:00:13]} 5. O-O {[%emt 0:00:08]} Nc6 {[%emt 0:00:40]} 6. c3 {[%emt 0:01:01]} Bd6 {[%emt 0:01:34]} 7. Nbd2 {[%emt 0:00:49]} e5 {[%emt 0:08:23]} 8. dxc5 {[%emt 0:04:03]} Bxc5 {[%emt 0:02:38]} 9. e4 {[%emt 0:00:00]} O-O {[%emt 0:07:20]} 10. b4 {[%emt 0:12:59]} Bb6 {[%emt 0:08:38]} 11. a3 {[%emt 0:06:56]} Bg4 {[%emt 0:07:54]} 12. h3 {[%emt 0:01:25]} Bh5 {[%emt 0:03:18]} 13. Bb2 {[%emt 0:07:31]} Re8 {[%emt 0:02:51]} 14. Re1 {[%emt 0:10:25]} Qd7 {[%emt 0:11:19]} 15. exd5 {[%emt 0:16:26]} Nxd5 {[%emt 0:12:51]} 16. Nc4 {[%emt 0:01:30]} Bc7 {[%emt 0:02:12]} 17. Be4 {[%emt 0:07:02]} Rad8 {[%emt 0:08:06]} 18. Qc2 {[%emt 0:00:11]} b5 {[%emt 0:06:45]} 19. Bxh7+ {[%emt 0:06:02]} Kh8 {[%emt 0:00:46]} 20. Bf5 {[%emt 0:00:04]} Qe7 {[%emt 0:00:33]} 21. Ncd2 {[%emt 0:03:40]} Qf6 {[%emt 0:04:42]} 22. Rad1 {[%emt 0:05:43]} Nf4 {[%emt 0:01:26]} 23. Be4 {[%emt 0:00:03]} Bb6 {[%emt 0:01:32]} 24. a4 {[%emt 0:03:26]} a6 {[%emt 0:01:53]} 25. axb5 {[%emt 0:01:30]} axb5 {[%emt 0:00:06]} 26. Rf1 {[%emt 0:03:18]} Rg8 {[%emt 0:01:08]} 27. Bxc6 {[%emt 0:01:56]} Qxc6 {[%emt 0:00:06]} 28. Qf5 {[%emt 0:00:05]} f6 {[%emt 0:01:52]} 29. Kh2 {[%emt 0:01:51]} Bc7 {[%emt 0:00:48]} 30. Kh1 {[%emt 0:00:51]} Bg6 {[%emt 0:01:16]} 31. Qg4 {[%emt 0:00:01]} e4 {[%emt 0:01:17]} 32. Nd4 {[%emt 0:00:59]} Qd5 {[%emt 0:00:14]} 33. f3 {[%emt 0:00:56]} e3 {[%emt 0:00:43]} 34. Ne4 {[%emt 0:00:57]} e2 {[%emt 0:00:12]} 35. Nxe2 {[%emt 0:00:00]} Qxd1 {[%emt 0:00:06]} 36. Rxd1 {[%emt 0:00:06]} Rxd1+ {[%emt 0:00:04]} 37. Ng1 {[%emt 0:00:01]} Bh5 {[%emt 0:01:03]} 38. Qf5 {[%emt 0:00:37]} Bg6 {[%emt 0:01:02]} 39. Qxb5 {[%emt 0:00:42]} Nd3 {[%emt 0:00:51]} 40. g3 {[%emt 0:01:15]} Nxb2 {[%emt 0:00:48]} 41. Qe2 {[%emt 0:00:46]} Bb6 {[%emt 0:00:32]} 42. Nc5 {[%emt 0:00:07]} Re8 {[%emt 0:00:29]} 43. Qxb2 {[%emt 0:00:06]} Ree1 {[%emt 0:00:04]} 44. Qf2 {[%emt 0:00:29]} Be8 {[%emt 0:01:09]} 45. h4 {[%emt 0:00:33]} Bc6 {[%emt 0:00:07]} 46. Kh2 {[%emt 0:00:51]} Rxg1 {[%emt 0:00:07]} 47. Qe3 {[%emt 0:00:28]} Rh1+ {[%emt 0:00:35]} 48. Kg2 {[%emt 0:00:01]} Rdg1+ {[%emt 0:00:14]} 49. Kf2 {[%emt 0:00:01]} Rf1+ {[%emt 0:00:26]} 50. Ke2 {[%emt 0:00:00]} Bb5+ {[%emt 0:00:28]} 51. c4 {[%emt 0:00:01]} Re1+ {[%emt 0:00:15]} 0-1

[Event "Kragero Resort Chess A 2019"]
[Site "Kragero"]
[Date "2019.02.22"]
[Round "5.15"]
[White "Tryggestad, Andreas Garberg"]
[Black "Mkrtchyan, Anahit D."]
[Result "1-0"]
[ECO "E15"]
[WhiteElo "2351"]
[BlackElo "1841"]
[Annotator "NA"]
[PlyCount "69"]
[EventDate "2019.02.20"]
[EventType "swiss"]
[EventCountry "NOR"]
[SourceTitle "playchess.com"]
[Source "ChessBase"]
[SourceQuality "1"]
[TimeControl "5400+30"]

1. d4 {[%emt 0:00:00]} Nf6 {[%emt 0:00:00]} 2. c4 {[%emt 0:00:00]} e6 {[%emt 0:00:00]} 3. Nf3 {[%emt 0:00:00]} b6 {[%emt 0:00:00]} 4. g3 {[%emt 0:00:00]} Ba6 {[%emt 0:00:00]} 5. b3 {[%emt 0:00:00]} Bb4+ {[%emt 0:00:00]} 6. Bd2 {[%emt 0:00:00]} Be7 {[%emt 0:00:00]} 7. Bc3 {[%emt 0:00:00]} c6 {[%emt 0:00:06]} 8. Nbd2 {[%emt 0:00:00]} d5 {[%emt 0:00:06]} 9. Bg2 {[%emt 0:00:02]} Nbd7 {[%emt 0:00:08]} 10. O-O {[%emt 0:00:10]} O-O {[%emt 0:00:05]} 11. Re1 {[%emt 0:00:50]} Bb7 {[%emt 0:00:11]} 12. Ne5 {[%emt 0:01:09]} Nxe5 {[%emt 0:03:19]} 13. dxe5 {[%emt 0:00:04]} Nd7 {[%emt 0:00:04]} 14. e4 {[%emt 0:00:47]} Qc7 {[%emt 0:03:34]} 15. Qh5 {[%emt 0:04:51]} dxc4 {[%emt 0:03:42]} 16. Nxc4 {[%emt 0:00:09]} c5 {[%emt 0:06:47]} 17. f4 {[%emt 0:02:12]} b5 {[%emt 0:04:51]} 18. Ne3 {[%emt 0:00:30]} Rfd8 {[%emt 0:06:11]} 19. f5 {[%emt 0:07:19]} g6 {[%emt 0:02:07]} 20. Qh3 {[%emt 0:02:17]} Nxe5 {[%emt 0:11:38]} 21. fxe6 {[%emt 0:00:16]} Bd6 {[%emt 0:07:37]} 22. Rf1 {[%emt 0:12:58]} Rf8 {[%emt 0:05:17]} 23. Rad1 {[%emt 0:12:02]} Rae8 {[%emt 0:08:29]} 24. Bxe5 {[%emt 0:00:25]} Bxe5 {[%emt 0:00:08]} 25. Rd7 {[%emt 0:00:03]} Qb6 {[%emt 0:04:39]} 26. exf7+ {[%emt 0:00:15]} Rxf7 {[%emt 0:00:11]} 27. Rdxf7 {[%emt 0:00:20]} h5 {[%emt 0:00:10]} 28. Nd5 {[%emt 0:01:05]} Bxd5 {[%emt 0:00:40]} 29. exd5 {[%emt 0:00:02]} c4+ {[%emt 0:00:07]} 30. Kh1 {[%emt 0:00:06]} cxb3 {[%emt 0:00:14]} 31. axb3 {[%emt 0:00:13]} Rd8 {[%emt 0:02:22]} 32. Qe6 {[%emt 0:00:10]} Qxe6 {[%emt 0:00:21]} 33. dxe6 {[%emt 0:00:06]} Re8 {[%emt 0:00:12]} 34. e7 {[%emt 0:00:09]} Bg7 {[%emt 0:00:17]} 35. Bc6 {[%emt 0:00:09]} 1-0

[Event "Kragero Resort Chess A 2019"]
[Site "Kragero"]
[Date "2019.02.22"]
[Round "5.16"]
[White "Doluhanova, Evgeniya"]
[Black "Fossan, Aleksander"]
[Result "1/2-1/2"]
[ECO "A30"]
[WhiteElo "2348"]
[BlackElo "2040"]
[Annotator "NA"]
[PlyCount "107"]
[EventDate "2019.02.20"]
[EventType "swiss"]
[EventCountry "NOR"]
[SourceTitle "playchess.com"]
[Source "ChessBase"]
[SourceQuality "1"]
[TimeControl "5400+30"]

1. Nf3 {[%emt 0:04:51]} c5 {[%emt 0:00:00]} 2. b3 {[%emt 0:00:45]} Nf6 {[%emt 0:03:39]} 3. Bb2 {[%emt 0:00:07]} g6 {[%emt 0:00:25]} 4. c4 {[%emt 0:01:40]} Bg7 {[%emt 0:00:08]} 5. e4 {[%emt 0:00:47]} O-O {[%emt 0:01:45]} 6. d3 {[%emt 0:04:26]} Nc6 {[%emt 0:00:44]} 7. Be2 {[%emt 0:01:55]} d6 {[%emt 0:00:15]} 8. O-O {[%emt 0:00:36]} a6 {[%emt 0:04:00]} 9. Nbd2 {[%emt 0:01:15]} e5 {[%emt 0:03:39]} 10. Ne1 {[%emt 0:00:28]} Ne8 {[%emt 0:03:43]} 11. Nc2 {[%emt 0:06:59]} Nc7 {[%emt 0:00:28]} 12. a3 {[%emt 0:01:12]} b5 {[%emt 0:01:33]} 13. b4 {[%emt 0:01:27]} Ne6 {[%emt 0:08:09]} 14. Nb3 {[%emt 0:04:35]} Rb8 {[%emt 0:04:35]} 15. cxb5 {[%emt 0:02:00]} axb5 {[%emt 0:00:18]} 16. Rc1 {[%emt 0:01:30]} cxb4 {[%emt 0:10:04]} 17. Nxb4 {[%emt 0:00:14]} Nxb4 {[%emt 0:00:12]} 18. axb4 {[%emt 0:00:06]} Bb7 {[%emt 0:01:19]} 19. Na5 {[%emt 0:04:55]} Qb6 {[%emt 0:01:08]} 20. Bg4 {[%emt 0:03:36]} Bh6 {[%emt 0:03:11]} 21. Rc2 {[%emt 0:03:01]} Nd4 {[%emt 0:02:42]} 22. Bxd4 {[%emt 0:01:40]} Qxd4 {[%emt 0:02:19]} 23. Rc7 {[%emt 0:00:14]} Ba8 {[%emt 0:00:16]} 24. Qb3 {[%emt 0:02:19]} d5 {[%emt 0:01:04]} 25. Rd1 {[%emt 0:32:29]} dxe4 {[%emt 0:02:28]} 26. Rd7 {[%emt 0:02:19]} Qb6 {[%emt 0:01:16]} 27. dxe4 {[%emt 0:00:07]} Rbd8 {[%emt 0:02:26]} 28. Qc3 {[%emt 0:03:37]} Bg7 {[%emt 0:01:34]} 29. Qc5 {[%emt 0:01:17]} Qxc5 {[%emt 0:15:22]} 30. bxc5 {[%emt 0:00:06]} Rxd7 {[%emt 0:00:13]} 31. Bxd7 {[%emt 0:00:11]} Bf6 {[%emt 0:01:19]} 32. c6 {[%emt 0:01:40]} Bd8 {[%emt 0:00:47]} 33. Nb3 {[%emt 0:00:08]} Bc7 {[%emt 0:01:15]} 34. Kf1 {[%emt 0:00:35]} Rb8 {[%emt 0:01:51]} 35. Nc5 {[%emt 0:00:47]} Rb6 {[%emt 0:00:44]} 36. Rb1 {[%emt 0:06:33]} Bxc6 {[%emt 0:00:49]} 37. Bxc6 {[%emt 0:00:05]} Rxc6 {[%emt 0:00:03]} 38. Rxb5 {[%emt 0:00:04]} f6 {[%emt 0:05:05]} 39. Ke2 {[%emt 0:01:38]} Kg7 {[%emt 0:02:24]} 40. Kd3 {[%emt 0:00:41]} Bb6 {[%emt 0:01:00]} 41. Kc4 {[%emt 0:01:53]} Kf7 {[%emt 0:00:31]} 42. Kd5 {[%emt 0:00:43]} Rxc5+ {[%emt 0:01:08]} 43. Rxc5 {[%emt 0:00:04]} Bxc5 {[%emt 0:00:04]} 44. Kxc5 {[%emt 0:00:06]} Ke6 {[%emt 0:00:13]} 45. h4 {[%emt 0:05:27]} h6 {[%emt 0:00:25]} 46. f3 {[%emt 0:00:17]} Kd7 {[%emt 0:01:20]} 47. Kd5 {[%emt 0:00:19]} Ke7 {[%emt 0:00:41]} 48. g3 {[%emt 0:00:45]} g5 {[%emt 0:01:36]} 49. h5 {[%emt 0:00:43]} Kd7 {[%emt 0:00:00]} 50. g4 {[%emt 0:00:16]} Ke7 {[%emt 0:00:00]} 51. Kc6 {[%emt 0:00:14]} Ke6 {[%emt 0:00:00]} 52. Kc7 {[%emt 0:00:13]} Ke7 {[%emt 0:00:00]} 53. Kc8 {[%emt 0:00:38]} Ke8 {[%emt 0:00:00]} 54. Kc7 {[%emt 0:00:04]} 1/2-1/2

[Event "Kragero Resort Chess A 2019"]
[Site "Kragero"]
[Date "2019.02.22"]
[Round "5.17"]
[White "Skotheim, Andreas"]
[Black "Hauge, Lars Oskar"]
[Result "0-1"]
[ECO "A10"]
[WhiteElo "2168"]
[BlackElo "2476"]
[Annotator "RC"]
[PlyCount "112"]
[EventDate "2019.02.20"]
[EventType "swiss"]
[EventCountry "NOR"]
[SourceTitle "playchess.com"]
[Source "ChessBase"]
[SourceQuality "1"]
[TimeControl "5400+30"]

1. c4 {[%emt 0:00:00]} e6 {[%emt 0:00:00]} 2. g3 {[%emt 0:00:46]} f5 {[%emt 0:00:00]} 3. Bg2 {[%emt 0:00:19]} Nf6 {[%emt 0:00:00]} 4. Nf3 {[%emt 0:00:35]} g6 {[%emt 0:01:22]} 5. d4 {[%emt 0:01:21]} Bg7 {[%emt 0:00:25]} 6. Nc3 {[%emt 0:01:08]} O-O {[%emt 0:00:40]} 7. Qd3 {[%emt 0:06:02]} Nc6 {[%emt 0:03:00]} 8. O-O {[%emt 0:03:48]} d6 {[%emt 0:00:23]} 9. Rd1 {[%emt 0:02:24]} Qe8 {[%emt 0:00:51]} 10. e4 {[%emt 0:09:23]} e5 {[%emt 0:00:32]} 11. dxe5 {[%emt 0:00:37]} dxe5 {[%emt 0:00:22]} 12. Nd5 {[%emt 0:04:20]} fxe4 {[%emt 0:02:01]} 13. Nxf6+ {[%emt 0:00:27]} Bxf6 {[%emt 0:00:06]} 14. Qxe4 {[%emt 0:00:07]} Bf5 {[%emt 0:00:28]} 15. Qd5+ {[%emt 0:00:50]} Kg7 {[%emt 0:00:08]} 16. Bg5 {[%emt 0:07:55]} Qe7 {[%emt 0:00:10]} 17. Qd2 {[%emt 0:04:39]} e4 {[%emt 0:32:20]} 18. Bxf6+ {[%emt 0:08:01]} Qxf6 {[%emt 0:00:21]} 19. Ng5 {[%emt 0:01:04]} Rae8 {[%emt 0:00:52]} 20. h4 {[%emt 0:08:08]} h6 {[%emt 0:05:32]} 21. Nh3 {[%emt 0:00:13]} Bg4 {[%emt 0:02:18]} 22. Re1 {[%emt 0:04:25]} Bxh3 {[%emt 0:02:44]} 23. Bxh3 {[%emt 0:00:11]} Rd8 {[%emt 0:00:14]} 24. Qc3 {[%emt 0:02:01]} Nd4 {[%emt 0:02:04]} 25. Kh1 {[%emt 0:07:34]} Rfe8 {[%emt 0:01:38]} 26. Bg2 {[%emt 0:01:44]} Qf5 {[%emt 0:01:43]} 27. c5 {[%emt 0:00:52]} Qxf2 {[%emt 0:05:21]} 28. Bxe4 {[%emt 0:02:25]} Qf6 {[%emt 0:01:36]} 29. Bg2 {[%emt 0:00:49]} Nf5 {[%emt 0:00:33]} 30. Rxe8 {[%emt 0:07:17]} Rxe8 {[%emt 0:02:20]} 31. Rd1 {[%emt 0:00:28]} Qxc3 {[%emt 0:01:10]} 32. bxc3 {[%emt 0:01:57]} c6 {[%emt 0:01:10]} 33. Bh3 {[%emt 0:02:13]} Nxg3+ {[%emt 0:02:19]} 34. Kg2 {[%emt 0:00:25]} Ne2 {[%emt 0:03:51]} 35. Rd7+ {[%emt 0:00:24]} Kf6 {[%emt 0:00:05]} 36. Rxb7 {[%emt 0:00:29]} Nf4+ {[%emt 0:02:34]} 37. Kg3 {[%emt 0:00:12]} Re3+ {[%emt 0:00:24]} 38. Kxf4 {[%emt 0:00:29]} Rxh3 {[%emt 0:02:59]} 39. Kg4 {[%emt 0:00:32]} Rxc3 {[%emt 0:00:13]} 40. h5 {[%emt 0:02:45]} a5 {[%emt 0:03:23]} 41. hxg6 {[%emt 0:02:18]} Kxg6 {[%emt 0:00:39]} 42. Kf4 {[%emt 0:01:17]} Rxc5 {[%emt 0:00:10]} 43. Rb8 {[%emt 0:01:08]} Rc4+ {[%emt 0:01:16]} 44. Ke5 {[%emt 0:00:11]} Kg5 {[%emt 0:00:31]} 45. Rg8+ {[%emt 0:01:03]} Kh4 {[%emt 0:00:12]} 46. Rg1 {[%emt 0:00:15]} h5 {[%emt 0:00:20]} 47. Kf5 {[%emt 0:00:54]} Kh3 {[%emt 0:00:22]} 48. a4 {[%emt 0:01:09]} Kh2 {[%emt 0:01:05]} 49. Rg6 {[%emt 0:00:19]} h4 {[%emt 0:00:09]} 50. Ke5 {[%emt 0:01:17]} h3 {[%emt 0:00:33]} 51. Rd6 {[%emt 0:00:08]} Kg3 {[%emt 0:00:34]} 52. Rd3+ {[%emt 0:00:25]} Kg4 {[%emt 0:00:07]} 53. Rd2 {[%emt 0:00:08]} Rxa4 {[%emt 0:00:06]} 54. Rc2 {[%emt 0:00:35]} Ra3 {[%emt 0:00:49]} 55. Rxc6 {[%emt 0:00:29]} h2 {[%emt 0:00:07]} 56. Rg6+ {[%emt 0:00:30]} Kf3 {[%emt 0:00:08]} 0-1

[Event "Kragero Resort Chess A 2019"]
[Site "Kragero"]
[Date "2019.02.22"]
[Round "5.19"]
[White "Ingebretsen, Jens E"]
[Black "Holand, Per Fredrik"]
[Result "1-0"]
[ECO "A18"]
[WhiteElo "2297"]
[BlackElo "2024"]
[Annotator "NA"]
[PlyCount "63"]
[EventDate "2019.02.20"]
[EventType "swiss"]
[EventCountry "NOR"]
[SourceTitle "playchess.com"]
[Source "ChessBase"]
[SourceQuality "1"]
[TimeControl "5400+30"]

1. c4 {[%emt 0:00:31]} Nf6 {[%emt 0:00:40]} 2. Nc3 {[%emt 0:00:09]} e6 {[%emt 0:00:17]} 3. e4 {[%emt 0:00:04]} d5 {[%emt 0:01:23]} 4. e5 {[%emt 0:00:04]} Nfd7 {[%emt 0:00:52]} 5. d4 {[%emt 0:01:52]} dxc4 {[%emt 0:01:13]} 6. Bxc4 {[%emt 0:02:18]} Nb6 {[%emt 0:01:26]} 7. Bd3 {[%emt 0:00:55]} c5 {[%emt 0:02:54]} 8. Nf3 {[%emt 0:01:02]} Nc6 {[%emt 0:00:22]} 9. dxc5 {[%emt 0:03:11]} Nd7 {[%emt 0:04:16]} 10. O-O {[%emt 0:02:52]} Nxc5 {[%emt 0:01:29]} 11. Bb5 {[%emt 0:00:54]} Qxd1 {[%emt 0:07:11]} 12. Rxd1 {[%emt 0:00:09]} Bd7 {[%emt 0:00:32]} 13. Be3 {[%emt 0:01:02]} a6 {[%emt 0:14:21]} 14. Bf1 {[%emt 0:07:13]} Be7 {[%emt 0:00:55]} 15. Rac1 {[%emt 0:03:14]} Rd8 {[%emt 0:08:48]} 16. Nd5 {[%emt 0:00:58]} exd5 {[%emt 0:01:13]} 17. Bxc5 {[%emt 0:00:51]} Bg4 {[%emt 0:02:56]} 18. Bb6 {[%emt 0:02:17]} Rc8 {[%emt 0:07:26]} 19. Rxd5 {[%emt 0:00:24]} Be6 {[%emt 0:00:32]} 20. Rdd1 {[%emt 0:01:28]} Bxa2 {[%emt 0:06:28]} 21. Nd4 {[%emt 0:00:16]} Bg5 {[%emt 0:14:50]} 22. Rc3 {[%emt 0:00:20]} O-O {[%emt 0:00:29]} 23. Nxc6 {[%emt 0:00:31]} Rxc6 {[%emt 0:00:30]} 24. Rxc6 {[%emt 0:00:11]} bxc6 {[%emt 0:00:07]} 25. Bxa6 {[%emt 0:00:23]} Re8 {[%emt 0:01:54]} 26. Bc7 {[%emt 0:00:48]} Bd5 {[%emt 0:00:30]} 27. b4 {[%emt 0:00:46]} Bf4 {[%emt 0:00:47]} 28. b5 {[%emt 0:04:30]} Bc4 {[%emt 0:03:46]} 29. Rd4 {[%emt 0:03:34]} Bxb5 {[%emt 0:02:26]} 30. Bxb5 {[%emt 0:00:14]} cxb5 {[%emt 0:00:19]} 31. Rxf4 {[%emt 0:00:07]} g5 {[%emt 0:00:09]} 32. Rd4 {[%emt 0:00:22]} 1-0

[Event "Kragero Resort Chess A 2019"]
[Site "Kragero"]
[Date "2019.02.22"]
[Round "5.20"]
[White "Birkisson, Bjorn Holm"]
[Black "Mashinskaya, Iulia"]
[Result "1-0"]
[ECO "E72"]
[WhiteElo "2078"]
[BlackElo "2261"]
[Annotator "NA"]
[PlyCount "119"]
[EventDate "2019.02.20"]
[EventType "swiss"]
[EventCountry "NOR"]
[SourceTitle "playchess.com"]
[Source "ChessBase"]
[SourceQuality "1"]
[TimeControl "5400+30"]

1. c4 {[%emt 0:01:55]} e5 {[%emt 0:00:35]} 2. g3 {[%emt 0:00:11]} Nf6 {[%emt 0:09:28]} 3. Nc3 {[%emt 0:01:06]} d6 {[%emt 0:00:47]} 4. Bg2 {[%emt 0:00:27]} g6 {[%emt 0:01:49]} 5. e4 {[%emt 0:06:47]} Bg7 {[%emt 0:01:24]} 6. Nge2 {[%emt 0:01:15]} O-O {[%emt 0:01:46]} 7. d4 {[%emt 0:03:52]} exd4 {[%emt 0:09:54]} 8. Nxd4 {[%emt 0:01:10]} Bg4 {[%emt 0:09:15] E72: King's Indian: 4 e4 d6 5 g3} (8... Nc6 9. Nxc6 bxc6 10. O-O Nd7 11. Qc2 Qf6 12. Ne2 Nc5 13. Rb1 a5 14. b3 Qe7 15. Be3 f5 16. Bxc5 dxc5 17. e5 Qxe5 18. Bxc6 Ra6 19. Bd5+ Kh8 {½-½ (75) Abasov,N (2575)-Bogdanovich,S (2593) Istanbul 2017}) 9. f3 $146 {[%emt 0:11:16]} ({Predecessor:} 9. Qb3 Na6 10. h3 Nc5 11. Qc2 Be6 12. Nxe6 fxe6 13. Be3 Ncd7 14. O-O e5 15. Rad1 Qe7 16. c5 Nxc5 17. Bxc5 dxc5 {½-½ (59) Lorum,K-Heyen,M Germany 1998}) 9... Bd7 {[%emt 0:00:52]} 10. O-O {[%emt 0:01:52]} Nc6 {[%emt 0:02:27]} 11. Be3 {[%emt 0:06:50]} Qc8 {[%emt 0:07:34]} 12. Nd5 {[%emt 0:02:20]} Nxd5 {[%emt 0:02:19]} 13. cxd5 {[%emt 0:00:31]} Ne5 {[%emt 0:01:07]} 14. Rc1 {[%emt 0:00:42]} Qd8 {[%emt 0:04:04]} 15. h3 {[%emt 0:02:54]} c5 {[%emt 0:04:04]} 16. dxc6 {[%emt 0:01:37]} Nxc6 {[%emt 0:00:14]} 17. b3 {[%emt 0:04:18]} Qa5 {[%emt 0:03:49]} 18. Rf2 {[%emt 0:08:56]} Nxd4 {[%emt 0:02:08]} 19. Bxd4 {[%emt 0:00:16]} Bxd4 {[%emt 0:00:31]} 20. Qxd4 {[%emt 0:00:11]} Qe5 {[%emt 0:00:34]} 21. Qxe5 {[%emt 0:00:55]} dxe5 {[%emt 0:00:02]} 22. f4 {[%emt 0:06:26]} exf4 {[%emt 0:02:36]} 23. gxf4 {[%emt 0:01:19]} Bc6 {[%emt 0:03:27]} 24. e5 {[%emt 0:00:14]} Bxg2 {[%emt 0:02:34]} 25. Kxg2 {[%emt 0:00:23]} Rac8 {[%emt 0:01:05]} 26. Rfc2 {[%emt 0:00:59]} Rcd8 {[%emt 0:09:06]} 27. Rc7 {[%emt 0:03:32]} Rd2+ {[%emt 0:00:09]} 28. Kf3 {[%emt 0:02:36]} Rfd8 {[%emt 0:09:04]} 29. R1c3 {[%emt 0:09:45]} Rxa2 {[%emt 0:02:25]} 30. Rxb7 {[%emt 0:00:15]} Rd1 {[%emt 0:03:50]} 31. Rc8+ {[%emt 0:00:38]} Kg7 {[%emt 0:00:01]} 32. Rcc7 {[%emt 0:03:14]} Rf1+ $18 {[%emt 0:02:24]} 33. Kg3 {[%emt 0:00:33]} Rg1+ {[%emt 0:01:12]} 34. Kh4 {[%emt 0:00:13]} g5+ {[%emt 0:03:30]} 35. fxg5 {[%emt 0:05:41]} Rf2 {[%emt 0:00:14]} 36. e6 {[%emt 0:00:05]} Re1 {[%emt 0:00:59]} 37. Rxf7+ {[%emt 0:00:10]} Rxf7 {[%emt 0:00:03]} 38. Rxf7+ {[%emt 0:00:08]} Kg6 {[%emt 0:00:05]} 39. Rf6+ {[%emt 0:00:30]} Kg7 {[%emt 0:00:01]} 40. Kh5 {[%emt 0:00:30]} Re3 {[%emt 0:00:22]} 41. h4 {[%emt 0:00:05]} Rxb3 {[%emt 0:00:26]} 42. Rf7+ {[%emt 0:00:21]} Kg8 {[%emt 0:00:04]} 43. Rxa7 {[%emt 0:00:40]} Re3 {[%emt 0:00:12]} 44. Re7 {[%emt 0:00:43]} Kf8 {[%emt 0:00:24]} 45. Rf7+ {[%emt 0:00:06]} Kg8 {[%emt 0:00:13]} 46. Rf6 {[%emt 0:00:19]} Re4 {[%emt 0:00:12]} 47. g6 {[%emt 0:00:34]} hxg6+ {[%emt 0:01:05]} 48. Kxg6 {[%emt 0:00:06]} Re5 {[%emt 0:02:13]} 49. h5 {[%emt 0:00:12]} Re1 {[%emt 0:00:17]} 50. h6 {[%emt 0:00:32]} Rg1+ {[%emt 0:00:09]} 51. Kf5 {[%emt 0:00:06]} Rf1+ {[%emt 0:00:06]} 52. Ke5 {[%emt 0:00:04]} Re1+ {[%emt 0:00:19]} 53. Kd6 {[%emt 0:00:05]} Rd1+ {[%emt 0:00:07]} 54. Ke7 {[%emt 0:00:17]} Ra1 {[%emt 0:00:39]} 55. Rf8+ {[%emt 0:00:38]} Kh7 {[%emt 0:00:06]} 56. Kf7 {[%emt 0:00:18]} Rf1+ {[%emt 0:00:21]} 57. Ke8 {[%emt 0:00:04]} Re1 {[%emt 0:00:15]} 58. e7 {[%emt 0:00:07]} Kxh6 {[%emt 0:00:24]} 59. Rf7 {[%emt 0:00:16]} Rg1 {[%emt 0:01:27]} 60. Kf8 {[%emt 0:00:18]} 1-0

[Event "Kragero Resort Chess A 2019"]
[Site "Kragero"]
[Date "2019.02.22"]
[Round "5.21"]
[White "Holleland, Sigve"]
[Black "Fossum, Oystein Boyum"]
[Result "0-1"]
[ECO "A25"]
[WhiteElo "2009"]
[BlackElo "2250"]
[Annotator "ChessBase"]
[PlyCount "81"]
[EventDate "2019.02.20"]
[EventType "swiss"]
[EventCountry "NOR"]
[SourceTitle "playchess.com"]
[Source "ChessBase"]
[SourceQuality "1"]
[TimeControl "5400+30"]

1. c4 {[%emt 0:01:02]} e5 {[%emt 0:00:30]} 2. Nc3 {[%emt 0:00:10]} Nc6 {[%emt 0:00:57]} 3. g3 {[%emt 0:00:13]} f5 {[%emt 0:00:59]} 4. Bg2 {[%emt 0:02:25]} Nf6 {[%emt 0:00:16]} 5. e3 {[%emt 0:02:10]} g6 {[%emt 0:00:42]} 6. d4 {[%emt 0:01:38]} e4 {[%emt 0:05:08]} 7. f3 {[%emt 0:03:51]} exf3 {[%emt 0:03:24]} 8. Nxf3 {[%emt 0:00:44]} d6 {[%emt 0:03:51]} 9. O-O {[%emt 0:07:35]} Bg7 {[%emt 0:01:05]} 10. b4 {[%emt 0:05:23]} O-O {[%emt 0:03:16]} 11. Rb1 {[%emt 0:01:24]} Qe7 {[%emt 0:12:24]} 12. Re1 {[%emt 0:16:56]} Bd7 {[%emt 0:03:06]} 13. b5 {[%emt 0:03:13]} Na5 {[%emt 0:05:39]} 14. Qa4 {[%emt 0:07:10]} b6 {[%emt 0:01:19]} 15. Ng5 {[%emt 0:12:51]} Rac8 {[%emt 0:05:41]} 16. Nh3 {[%emt 0:11:45]} c6 {[%emt 0:06:31]} 17. Qb4 {[%emt 0:00:50]} c5 {[%emt 0:02:39]} 18. Nd5 {[%emt 0:02:15]} Nxd5 {[%emt 0:01:38]} 19. Bxd5+ {[%emt 0:00:05]} Be6 {[%emt 0:01:07]} 20. dxc5 {[%emt 0:01:05]} Rxc5 {[%emt 0:03:40]} 21. e4 {[%emt 0:04:07]} Bxd5 {[%emt 0:16:26]} 22. exd5 {[%emt 0:00:35]} Bd4+ {[%emt 0:01:19]} 23. Kg2 {[%emt 0:00:58]} Qb7 {[%emt 0:00:23]} 24. Nf4 {[%emt 0:02:29]} Rxc4 {[%emt 0:00:18]} 25. Qxd6 {[%emt 0:00:33]} Bc5 {[%emt 0:02:48]} 26. Qe6+ {[%emt 0:02:57]} Qf7 {[%emt 0:00:51]} 27. Bb2 {[%emt 0:04:32]} Bd4 {[%emt 0:07:31]} 28. Bxd4 {[%emt 0:02:27]} Rxd4 {[%emt 0:00:03]} 29. Rbc1 {[%emt 0:00:52]} Nc4 {[%emt 0:02:11]} 30. Qc6 {[%emt 0:01:03]} Na5 {[%emt 0:01:17]} 31. Qe6 {[%emt 0:01:02]} Nc4 {[%emt 0:01:33]} 32. Qc6 {[%emt 0:00:08]} Na5 {[%emt 0:00:09]} 33. Qc3 {[%emt 0:00:59]} Re4 {[%emt 0:01:25]} 34. Ne6 {[%emt 0:00:13]} Rc4 {[%emt 0:00:54]} 35. Qe5 {[%emt 0:01:09]} Rfc8 {[%emt 0:00:29]} 36. Rcd1 {[%emt 0:00:31]} Rc2+ {[%emt 0:00:33]} 37. Kg1 {[%emt 0:00:12]} Qd7 {[%emt 0:02:12]} 38. a4 {[%emt 0:00:51]} Nc4 {[%emt 0:00:45]} 39. Qd4 {[%emt 0:00:31]} Nd6 {[%emt 0:01:36]} 40. Ng5 {[%emt 0:00:25]} h6 {[%emt 0:00:52]} 41. Qf6 {[%emt 0:00:43]} 0-1